bitfinex/quotes_BTCUSD_20240602
["timestamp","ask_amount","ask_price","bid_price","bid_amount"]
[1717338046523,0.002,68242.0,68238.0,0.034]
[1717338046694,0.002,68242.0,68239.0,0.033]
[1717338046862,0.005,68242.0,68240.0,0.00365588]
[1717338047061,0.004,68242.0,68239.0,0.033]
[1717338047405,0.0809,68245.0,68236.0,0.01]
[1717338047617,0.001,68242.0,68240.0,0.00365588]
[1717338047820,0.001,68242.0,68239.0,0.031]
[1717338048175,0.002,68242.0,68240.0,0.027]
[1717338048489,0.227431,68245.0,68232.0,0.156558]
[1717338048690,0.228431,68245.0,68236.0,0.037]
[1717338048891,0.003,68242.0,68238.0,0.033]
[1717338049323,0.228431,68245.0,68239.0,0.00365616]
[1717338049717,0.231431,68245.0,68234.0,0.01]
[1717338050025,0.231431,68245.0,68240.0,0.00365588]
[1717338050222,0.228431,68245.0,68234.0,0.01]
[1717338050442,0.001,68242.0,68240.0,0.027]
[1717338050643,0.146533,68244.0,68235.0,0.0036573]
[1717338050941,0.146533,68244.0,68239.0,0.033]
[1717338051584,0.001,68242.0,68240.0,0.027]
[1717338051990,0.0491,68241.0,68233.0,0.01]
[1717338052192,0.001,68242.0,68241.0,0.0036556]
[1717338052395,0.0501,68242.0,68234.0,0.033]
[1717338052594,0.0491,68238.0,68234.0,0.033]
[1717338052808,0.0491,68238.0,68230.0,0.01]
[1717338053368,0.0491,68238.0,68231.0,0.16208184]
[1717338053572,0.0491,68238.0,68231.0,0.01]
[1717338053972,0.0491,68238.0,68233.0,0.01]
[1717338054376,0.0521,68238.0,68234.0,0.033]
[1717338055352,0.2393,68237.0,68234.0,0.033]
[1717338055783,0.2393,68237.0,68234.0,0.037]
[1717338056002,0.2393,68237.0,68235.0,0.00351033]
[1717338056844,0.2423,68237.0,68235.0,0.00351033]
[1717338057252,0.2393,68237.0,68235.0,0.00351033]
[1717338057468,0.2403,68237.0,68235.0,0.00351033]
[1717338057619,0.2403,68237.0,68235.0,0.033]
[1717338057620,0.2433,68237.0,68235.0,0.033]
[1717338057815,0.2433,68237.0,68236.0,0.00346529]
[1717338058060,0.2433,68237.0,68235.0,0.07]
[1717338058415,0.2443,68237.0,68235.0,0.07]
[1717338058930,0.2413,68237.0,68236.0,0.0034783]
[1717338059137,0.2413,68237.0,68235.0,0.037]
[1717338059387,0.2443,68237.0,68236.0,0.18856511]
[1717338059947,0.2413,68237.0,68236.0,0.0034783]
[1717338060150,0.2393,68237.0,68228.0,0.01787718]
[1717338060412,0.0491,68234.0,68229.0,0.15208917]
[1717338060608,0.0491,68234.0,68230.0,0.15208917]
[1717338060801,0.0491,68234.0,68231.0,0.15208917]
[1717338060981,0.0491,68234.0,68232.0,0.15208917]
[1717338061186,0.0491,68234.0,68233.0,0.15208917]
[1717338061587,0.0501,68234.0,68233.0,0.15208917]
[1717338062405,0.1304,68234.0,68233.0,0.15208917]
[1717338062808,0.1304,68234.0,68232.0,0.037]
[1717338063224,0.1334,68234.0,68233.0,0.033]
[1717338063386,0.1334,68234.0,68233.0,0.1850979]
[1717338063589,0.2888,68234.0,68233.0,0.1520979]
[1717338063779,0.2858,68234.0,68233.0,0.1520979]
[1717338064010,0.2888,68234.0,68233.0,0.1520979]
[1717338064347,0.433354,68234.0,68233.0,0.1520979]
[1717338064493,0.434354,68234.0,68233.0,0.1890979]
[1717338064695,0.434354,68234.0,68232.0,0.032]
[1717338065117,0.435354,68234.0,68233.0,0.025]
[1717338065438,0.432354,68234.0,68233.0,0.1771028]
[1717338065796,0.435354,68234.0,68233.0,0.20758195]
[1717338066239,0.435354,68234.0,68233.0,0.05547915]
[1717338066441,0.435354,68234.0,68233.0,0.20758105]
[1717338066657,0.433354,68234.0,68233.0,0.1791019]
[1717338066987,0.384254,68234.0,68233.0,0.03047915]
[1717338067192,0.434354,68234.0,68233.0,0.17910187]
[1717338067327,0.2878,68234.0,68233.0,0.17910187]
[1717338067850,0.2888,68234.0,68233.0,0.20410187]
[1717338068255,0.2888,68234.0,68233.0,0.20740328]
[1717338069264,0.2888,68234.0,68214.0,0.02181174]
[1717338069265,0.2382,68221.0,68214.0,0.02181174]
[1717338069441,0.2382,68221.0,68206.0,0.4691]
[1717338069442,0.01,68225.0,68212.0,0.02181174]
[1717338069443,0.0491,68215.0,68212.0,0.02181174]
[1717338069647,0.0491,68213.0,68206.0,0.4691]
[1717338069828,0.0491,68207.0,68206.0,0.4691]
[1717338070029,0.0491,68207.0,68201.0,0.01468019]
[1717338070279,0.0491,68207.0,68202.0,0.14577791]
[1717338070629,0.0491,68207.0,68201.0,0.01468019]
[1717338070630,0.146604,68211.0,68201.0,0.01468019]
[1717338070840,0.0491,68203.0,68201.0,0.01468019]
[1717338071346,0.0491,68203.0,68202.0,0.037]
[1717338071784,0.001,68207.0,68202.0,0.037]
[1717338071962,0.0491,68203.0,68202.0,0.037]
[1717338073183,0.0531,68203.0,68202.0,0.037]
[1717338073383,0.0571,68203.0,68202.0,0.037]
[1717338073602,0.0571,68203.0,68201.0,0.01468019]
[1717338073803,0.0571,68203.0,68202.0,0.009]
[1717338074252,0.0531,68203.0,68201.0,0.01468019]
[1717338074391,0.0561,68203.0,68202.0,0.009]
[1717338075960,0.0601,68203.0,68202.0,0.009]
[1717338076546,0.011,68203.0,68202.0,0.009]
[1717338076762,0.0601,68203.0,68202.0,0.009]
[1717338077975,0.011,68203.0,68202.0,0.174]
[1717338078201,0.011,68203.0,68202.0,0.16686042]
[1717338080661,0.011,68203.0,68202.0,0.17686042]
[1717338081593,0.011,68203.0,68202.0,0.16686042]
[1717338083299,0.011,68203.0,68202.0,0.16676042]
[1717338085232,0.011,68203.0,68202.0,0.17676042]
[1717338086410,0.011,68203.0,68202.0,0.46916133]
[1717338086607,0.011,68203.0,68202.0,0.64756133]
[1717338087702,0.011,68203.0,68202.0,0.54756133]
[1717338088005,0.004,68203.0,68202.0,0.53866133]
[1717338088811,0.1652,68218.0,68213.0,0.01]
[1717338089009,0.1293,68219.0,68213.0,0.01]
[1717338089305,0.0802,68219.0,68214.0,0.01290304]
[1717338089745,0.07288895,68218.0,68214.0,0.16040304]
[1717338089953,0.12198895,68218.0,68211.0,0.1675]
[1717338090160,0.12198895,68218.0,68215.0,0.00290275]
[1717338090326,0.12198895,68218.0,68213.0,0.021]
[1717338090558,0.12198895,68218.0,68216.0,0.00290247]
[1717338090749,0.0491,68217.0,68214.0,0.015]
[1717338090952,0.195695,68215.0,68214.0,0.032]
[1717338091725,0.195695,68215.0,68214.0,0.015]
[1717338091954,0.195695,68215.0,68204.0,0.4691]
[1717338092223,0.0491,68211.0,68204.0,0.4691]
[1717338093164,0.07288895,68210.0,68204.0,0.5061]
[1717338093719,0.0491,68207.0,68204.0,0.4691]
[1717338093925,0.0491,68210.0,68204.0,0.5061]
[1717338094120,0.0491,68210.0,68204.0,0.4691]
[1717338094585,0.0491,68210.0,68204.0,0.5061]
[1717338095124,0.0491,68210.0,68204.0,0.5421]
[1717338095742,0.0491,68207.0,68204.0,0.5061]
[1717338096005,0.0491,68207.0,68204.0,0.5421]
[1717338096274,0.0491,68207.0,68204.0,0.073]
[1717338096695,0.2454,68209.0,68202.0,0.02804749]
[1717338096967,0.003,68207.0,68204.0,0.036]
[1717338097162,0.004,68207.0,68204.0,0.073]
[1717338098943,0.001,68207.0,68205.0,0.00290315]
[1717338099949,0.004,68207.0,68205.0,0.00290315]
[1717338100391,0.003,68207.0,68205.0,0.00290315]
[1717338100601,0.0491,68208.0,68205.0,0.00290315]
[1717338100775,0.004,68207.0,68205.0,0.07590315]
[1717338100947,0.004,68207.0,68205.0,0.073]
[1717338101149,0.004,68207.0,68206.0,0.0028999]
[1717338101616,0.003,68207.0,68206.0,0.0028999]
[1717338102110,0.0491,68208.0,68206.0,0.0028999]
[1717338102520,0.003,68208.0,68205.0,0.036]
[1717338102755,0.003,68208.0,68207.0,0.00289962]
[1717338102928,0.003,68208.0,68205.0,0.036]
[1717338102929,0.001,68208.0,68206.0,0.0028999]
[1717338103146,0.001,68208.0,68207.0,0.15504033]
[1717338103372,0.003,68208.0,68207.0,0.15504033]
[1717338103914,0.0802,68211.0,68207.0,0.15504033]
[1717338104116,0.001,68208.0,68207.0,0.00289962]
[1717338104325,0.0802,68211.0,68207.0,0.15504025]
[1717338104523,0.0802,68211.0,68208.0,0.15214063]
[1717338104731,0.0802,68211.0,68207.0,0.03989962]
[1717338104934,0.0802,68211.0,68209.0,0.00289911]
[1717338105130,0.0802,68211.0,68208.0,0.15503896]
[1717338105374,0.0802,68211.0,68210.0,0.00289883]
[1717338105584,0.0491,68214.0,68199.0,0.0491]
[1717338105791,0.393114,68233.0,68190.0,0.1523]
[1717338105792,0.226325,68202.0,68190.0,0.1523]
[1717338105993,0.06822139,68201.0,68191.0,0.15801726]
[1717338106161,0.01,68205.0,68192.0,0.23135241]
[1717338106367,0.0591,68203.0,68193.0,0.15215241]
[1717338106562,0.2327,68206.0,68194.0,0.15215241]
[1717338106563,0.01,68199.0,68194.0,0.15215241]
[1717338107002,0.01,68199.0,68195.0,0.15215241]
[1717338107179,0.01,68198.0,68196.0,0.15215241]
[1717338107381,0.01,68195.0,68190.0,0.01759182]
[1717338107582,0.01,68195.0,68193.0,0.073]
[1717338107745,0.01,68195.0,68193.0,0.036]
[1717338108351,0.0591,68194.0,68193.0,0.036]
[1717338109015,0.0591,68194.0,68187.0,0.1523]
[1717338109238,0.0491,68189.0,68188.0,0.15217808]
[1717338109457,0.0491,68189.0,68184.0,0.01730083]
[1717338109625,0.0491,68189.0,68182.0,0.1523]
[1717338109626,0.0491,68189.0,68185.0,0.14577791]
[1717338109831,0.0491,68189.0,68182.0,0.1523]
[1717338110031,0.0491,68189.0,68183.0,0.15219186]
[1717338110233,0.0491,68189.0,68182.0,0.29807791]
[1717338110637,0.0521,68189.0,68183.0,0.15219056]
[1717338111045,0.0521,68189.0,68181.0,0.01468019]
[1717338111046,0.22954595,68186.0,68185.0,0.027]
[1717338111252,0.22954595,68186.0,68171.0,0.4691]
[1717338111253,0.2327,68175.0,68171.0,0.4691]
[1717338111426,0.0491,68174.0,68172.0,0.00232421]
[1717338111634,0.156685,68173.0,68172.0,0.00232421]
[1717338111851,0.156685,68173.0,68167.0,0.01468019]
[1717338112044,0.01,68172.0,68167.0,0.01468019]
[1717338112251,0.01,68172.0,68168.0,0.00232534]
[1717338112453,0.0591,68171.0,68168.0,0.00232534]
[1717338112873,0.0491,68171.0,68168.0,0.00232534]
[1717338113404,0.0491,68171.0,68168.0,0.05132534]
[1717338113605,0.0651,68172.0,68168.0,0.05132534]
[1717338113807,0.0651,68172.0,68168.0,0.03532534]
[1717338113808,0.01,68171.0,68168.0,0.03532534]
[1717338113962,0.01,68171.0,68168.0,0.00232534]
[1717338114164,0.014,68171.0,68168.0,0.04532534]
[1717338114800,0.004,68171.0,68168.0,0.04532534]
[1717338115580,0.002,68171.0,68168.0,0.01832534]
[1717338116017,0.005,68171.0,68168.0,0.02332534]
[1717338116253,0.005,68171.0,68168.0,0.16910325]
[1717338116401,0.146692,68170.0,68168.0,0.03732534]
[1717338116602,0.146692,68170.0,68168.0,0.00232534]
[1717338116789,0.146692,68170.0,68168.0,0.00732534]
[1717338117875,0.146692,68170.0,68168.0,0.00232534]
[1717338118090,0.146692,68170.0,68168.0,0.019]
[1717338118297,0.148692,68170.0,68169.0,0.00236737]
[1717338118739,0.148692,68170.0,68168.0,0.019]
[1717338119157,0.15137069,68170.0,68168.0,0.024]
[1717338119378,0.15137069,68170.0,68169.0,0.00236737]
[1717338119581,0.14937069,68170.0,68169.0,0.00236737]
[1717338119787,0.14937069,68170.0,68168.0,0.005]
[1717338119788,0.14637069,68170.0,68165.0,0.009427]
[1717338119999,0.15137069,68170.0,68168.0,0.023]
[1717338120448,0.14837069,68170.0,68169.0,0.00236829]
[1717338120607,0.15037069,68170.0,68169.0,0.01636829]
[1717338120813,0.14837069,68170.0,68169.0,0.00736829]
[1717338121023,0.002,68170.0,68169.0,0.1531462]
[1717338121225,0.002,68170.0,68169.0,0.5599462]
[1717338121226,0.004,68170.0,68169.0,0.5599462]
[1717338121433,0.004,68170.0,68169.0,0.5829462]
[1717338121865,0.004,68170.0,68169.0,0.4829462]
[1717338122199,0.004,68170.0,68169.0,0.3054462]
[1717338122401,0.002,68170.0,68169.0,0.1481462]
[1717338122602,0.146679,68176.0,68169.0,0.1481462]
[1717338122776,0.146679,68176.0,68170.0,0.14577791]
[1717338122929,0.146679,68176.0,68170.0,0.14567791]
[1717338123132,0.146679,68176.0,68171.0,0.00236772]
[1717338123330,0.146679,68176.0,68172.0,0.14577791]
[1717338123541,0.146679,68176.0,68172.0,0.14814535]
[1717338124138,0.150679,68176.0,68172.0,0.14814535]
[1717338125387,0.148679,68176.0,68172.0,0.14814535]
[1717338125894,0.151679,68176.0,68172.0,0.17114535]
[1717338127092,0.43733372,68173.0,68172.0,0.02536744]
[1717338127288,0.386485,68173.0,68172.0,0.02536744]
[1717338127509,0.376485,68173.0,68172.0,0.023]
[1717338128623,0.376485,68173.0,68172.0,0.01]
[1717338128849,0.388485,68173.0,68172.0,0.023]
[1717338129619,0.388485,68173.0,68172.0,0.013]
[1717338129835,0.389485,68173.0,68172.0,0.023]
[1717338134382,0.001,68173.0,68172.0,0.023]
[1717338134601,0.10966659,68210.0,68172.0,0.023]
[1717338134603,0.08773327,68218.0,68200.0,0.246627]
[1717338134814,0.43733372,68211.0,68201.0,0.146624]
[1717338135014,0.43733372,68211.0,68200.0,0.24567856]
[1717338135015,0.14204817,68210.0,68200.0,0.24567856]
[1717338135221,0.06892905,68210.0,68202.0,0.00237799]
[1717338135417,0.123,68217.0,68201.0,0.00237621]
[1717338135773,0.123,68217.0,68200.0,0.1637]
[1717338136138,0.123,68217.0,68201.0,0.00237689]
[1717338136539,0.003,68211.0,68201.0,0.05637689]
[1717338136747,0.126,68217.0,68201.0,0.02437689]
[1717338137147,0.129,68217.0,68201.0,0.02437689]
[1717338137921,0.129,68217.0,68207.0,0.226212]
[1717338137922,0.006,68217.0,68207.0,0.226212]
[1717338138127,0.003,68217.0,68208.0,0.14577791]
[1717338138330,0.006,68217.0,68208.0,0.14577791]
[1717338138535,0.006,68217.0,68208.0,0.14815282]
[1717338138947,0.003,68211.0,68209.0,0.146608]
[1717338139121,0.003,68211.0,68210.0,0.14577791]
[1717338139331,0.003,68211.0,68210.0,0.14815225]
[1717338139688,0.003,68217.0,68211.0,0.146603]
[1717338139933,0.006,68217.0,68212.0,0.14815169]
[1717338140431,0.003,68217.0,68216.0,0.146593]
[1717338140625,0.003,68217.0,68216.0,0.29237091]
[1717338140847,0.003,68217.0,68216.0,0.2946939]
[1717338141305,0.07288895,68229.0,68217.0,0.14659]
[1717338141455,0.1536,68231.0,68217.0,0.29236791]
[1717338141802,0.1536,68231.0,68218.0,0.00232243]
[1717338142622,0.07288895,68229.0,68218.0,0.00232243]
[1717338143105,0.1536,68231.0,68218.0,0.15696323]
[1717338143414,0.1906,68231.0,68218.0,0.15410034]
[1717338143618,0.1906,68231.0,68222.0,0.146578]
[1717338143619,0.07288895,68229.0,68222.0,0.146578]
[1717338143913,0.07288895,68229.0,68223.0,0.00232101]
[1717338144872,0.10788895,68229.0,68223.0,0.00232101]
[1717338145498,0.07288895,68229.0,68223.0,0.00232101]
[1717338145730,0.10988895,68229.0,68223.0,0.00532101]
[1717338146357,0.10988895,68229.0,68223.0,0.00832101]
[1717338147517,0.10988895,68229.0,68223.0,0.15489801]
[1717338147726,0.10988895,68229.0,68228.0,0.146567]
[1717338147727,0.037,68229.0,68228.0,0.146567]
[1717338148233,0.037,68229.0,68228.0,0.1488866]
[1717338148624,0.1,68235.0,68228.0,0.1488866]
[1717338148846,0.1,68235.0,68223.0,0.003]
[1717338148847,0.1,68235.0,68229.0,0.146564]
[1717338149348,0.1,68235.0,68230.0,0.00231903]
[1717338150333,0.1,68235.0,68219.0,0.1541]
[1717338150551,0.07288895,68229.0,68220.0,0.14577791]
[1717338151170,0.07288895,68229.0,68226.0,0.146569]
[1717338151366,0.07288895,68229.0,68228.0,0.026]
[1717338151777,0.07288895,68229.0,68227.0,0.146569]
[1717338152189,0.07588895,68229.0,68227.0,0.146569]
[1717338152611,0.07288895,68229.0,68227.0,0.146569]
[1717338153040,0.07588895,68229.0,68227.0,0.175569]
[1717338153173,0.07588895,68229.0,68228.0,0.146567]
[1717338153374,0.003,68229.0,68228.0,0.146567]
[1717338154570,0.1,68235.0,68229.0,0.146564]
[1717338156099,0.102,68235.0,68229.0,0.169564]
[1717338156273,0.102,68235.0,68229.0,0.182564]
[1717338160926,0.102,68235.0,68230.0,0.00225795]
[1717338161130,0.102,68235.0,68230.0,0.00205795]
[1717338161358,0.102,68235.0,68215.0,0.02932]
[1717338161359,0.102,68235.0,68198.0,0.146631]
[1717338161360,0.146602,68212.0,68198.0,0.146631]
[1717338161561,0.07288895,68206.0,68200.0,0.43733372]
[1717338161772,0.07288895,68206.0,68184.0,0.1541]
[1717338161773,0.07288895,68213.0,68188.0,0.1]
[1717338161997,0.07288895,68227.0,68188.0,0.1]
[1717338161998,0.245,68219.0,68204.0,0.01]
[1717338162201,0.07288895,68227.0,68199.0,0.54]
[1717338162202,0.165,68224.0,68213.0,0.146598]
[1717338162418,0.165,68224.0,68208.0,0.146608]
[1717338163065,0.165,68224.0,68203.0,0.146619]
[1717338163297,0.165,68224.0,68204.0,0.146618]
[1717338164113,0.165,68224.0,68200.0,0.1541]
[1717338164114,0.004,68213.0,68200.0,0.1541]
[1717338164335,0.004,68213.0,68201.0,0.15214511]
[1717338164469,0.004,68213.0,68200.0,0.1541]
[1717338164470,0.123,68218.0,68202.0,0.15214511]
[1717338164671,0.123,68218.0,68204.0,0.014]
[1717338165077,0.123,68218.0,68205.0,0.1521507]
[1717338165277,0.123,68218.0,68200.0,0.300726]
[1717338165593,0.004,68213.0,68201.0,0.16615198]
[1717338165794,0.004,68213.0,68202.0,0.15215198]
[1717338165954,0.004,68213.0,68208.0,0.004]
[1717338166573,0.004,68213.0,68201.0,0.160625]
[1717338166782,0.123,68218.0,68202.0,0.15215054]
[1717338166984,0.43733372,68205.0,68203.0,0.15215054]
[1717338167190,0.43733372,68205.0,68191.0,0.02188926]
[1717338167191,0.01,68201.0,68177.0,0.02188926]
[1717338167389,0.123,68184.0,68167.0,0.336697]
[1717338167810,0.123,68184.0,68167.0,0.246697]
[1717338168249,0.123,68184.0,68168.0,0.1545]
[1717338168464,0.123,68184.0,68168.0,0.30027791]
[1717338168696,0.123,68184.0,68169.0,0.0019535]
[1717338168895,0.123,68184.0,68170.0,0.14577791]
[1717338169370,0.127,68184.0,68171.0,0.00195284]
[1717338169569,0.127,68184.0,68172.0,0.14577791]
[1717338170044,0.13,68184.0,68173.0,0.00195219]
[1717338170279,0.127,68184.0,68174.0,0.14577791]
[1717338170734,0.126,68184.0,68174.0,0.14577791]
[1717338170943,0.126,68184.0,68175.0,0.00195153]
[1717338170944,0.13,68184.0,68175.0,0.00195153]
[1717338171161,0.13,68184.0,68176.0,0.14577791]
[1717338171389,0.126,68184.0,68176.0,0.14577791]
[1717338171664,0.126,68184.0,68177.0,0.00195088]
[1717338171904,0.146649,68190.0,68177.0,0.00195088]
[1717338171905,0.43733372,68217.0,68196.0,0.1545]
[1717338172147,0.43733372,68217.0,68200.0,0.146625]
[1717338172352,0.43733372,68217.0,68198.0,0.14663]
[1717338172623,0.123,68220.0,68201.0,0.01204451]
[1717338172793,0.14658,68223.0,68202.0,0.00586388]
[1717338173030,0.14658,68223.0,68202.0,0.00790807]
[1717338173409,0.146581,68222.0,68203.0,0.14662]
[1717338173882,0.146581,68222.0,68204.0,0.00201126]
[1717338174094,0.012,68217.0,68204.0,0.00201126]
[1717338174677,0.07288895,68213.0,68204.0,0.00201126]
[1717338174961,0.22858895,68213.0,68204.0,0.00201126]
[1717338175242,0.22858895,68213.0,68198.0,0.002]
[1717338175243,0.07288895,68213.0,68198.0,0.002]
[1717338175477,0.1557,68220.0,68204.0,0.001]
[1717338175700,0.383772,68226.0,68205.0,0.14577791]
[1717338175939,0.03,68222.0,68205.0,0.14778539]
[1717338176164,0.03,68222.0,68206.0,0.00586353]
[1717338176386,0.03,68222.0,68207.0,0.14577791]
[1717338176594,0.03,68222.0,68207.0,0.14778473]
[1717338176595,0.003,68213.0,68207.0,0.14778473]
[1717338176799,0.07288895,68223.0,68207.0,0.14778473]
[1717338177115,0.07288895,68225.0,68208.0,0.00586353]
[1717338177351,0.07288895,68225.0,68209.0,0.14778408]
[1717338177946,0.07288895,68225.0,68212.0,0.146601]
[1717338178199,0.07288895,68225.0,68213.0,0.14577791]
[1717338178416,0.07288895,68225.0,68213.0,0.14778277]
[1717338179379,0.07288895,68225.0,68213.0,0.29438077]
[1717338180288,0.07288895,68218.0,68213.0,0.29438077]
[1717338180786,0.07288895,68218.0,68213.0,0.29638077]
[1717338181465,0.07288895,68218.0,68213.0,0.29438077]
[1717338181941,0.019,68218.0,68213.0,0.29638077]
[1717338183322,0.019,68218.0,68214.0,0.146595]
[1717338183542,0.019,68218.0,68215.0,0.00200421]
[1717338184324,0.019,68218.0,68217.0,0.146591]
[1717338184525,0.21944695,68232.0,68217.0,0.14859456]
[1717338184737,0.123,68246.0,68217.0,0.14859456]
[1717338184738,0.04351873,68253.0,68226.0,0.07288895]
[1717338184947,0.04351873,68253.0,68223.0,0.14577791]
[1717338184948,0.067249,68254.0,68253.0,0.246513]
[1717338184949,0.00858,68254.0,68253.0,0.246513]
[1717338185154,0.00858,68254.0,68253.0,0.324013]
[1717338185351,0.00858,68254.0,68253.0,0.14830255]
[1717338185690,0.00858,68254.0,68253.0,0.00178955]
[1717338186121,0.00858,68254.0,68244.0,0.01468019]
[1717338186351,0.07288895,68253.0,68244.0,0.3069891]
[1717338186551,0.07288895,68253.0,68245.0,0.00190725]
[1717338186981,0.23798895,68253.0,68245.0,0.14768516]
[1717338188107,0.23998895,68253.0,68245.0,0.16768516]
[1717338188314,0.23798895,68253.0,68245.0,0.14768516]
[1717338188542,0.00858,68254.0,68253.0,0.301013]
[1717338188760,0.00858,68254.0,68253.0,0.44679091]
[1717338188994,0.00858,68254.0,68253.0,0.44869938]
[1717338189208,0.00853769,68254.0,68253.0,0.48801938]
[1717338189627,0.00853769,68254.0,68253.0,0.63267557]
[1717338189841,0.00853769,68254.0,68253.0,0.65567557]
[1717338190266,0.00953769,68254.0,68253.0,0.88071557]
[1717338190483,0.00953769,68254.0,68253.0,0.79609633]
[1717338190935,0.01053769,68254.0,68253.0,0.83309633]
[1717338191144,0.00953769,68254.0,68253.0,0.83309633]
[1717338191594,0.00953769,68254.0,68253.0,0.90709633]
[1717338191595,0.01053769,68254.0,68253.0,0.90709633]
[1717338191813,0.01053769,68254.0,68253.0,1.00709633]
[1717338192047,0.01053769,68254.0,68253.0,0.90709633]
[1717338192268,0.01053769,68254.0,68253.0,1.30012333]
[1717338192921,0.01053769,68254.0,68253.0,1.20012333]
[1717338193421,0.01053769,68254.0,68253.0,1.30012333]
[1717338193690,0.01053769,68254.0,68253.0,1.40012333]
[1717338194781,0.00858,68276.0,68261.0,0.1]
[1717338194987,0.00858,68276.0,68271.0,0.87902291]
[1717338195204,0.00858,68276.0,68271.0,1.5976931]
[1717338195413,0.00858,68276.0,68271.0,1.5763382]
[1717338195615,0.00858,68276.0,68271.0,1.7481174]
[1717338195852,0.00858,68276.0,68271.0,1.5781674]
[1717338196489,0.00858,68276.0,68271.0,1.8711174]
[1717338197352,0.00858,68276.0,68271.0,1.6081674]
[1717338197560,0.00858,68276.0,68271.0,1.9011174]
[1717338197772,0.00858,68276.0,68271.0,1.4662774]
[1717338197984,0.00858,68276.0,68271.0,0.99794664]
[1717338198460,0.00858,68276.0,68271.0,0.70499664]
[1717338199068,0.00858,68276.0,68271.0,0.72799664]
[1717338199281,0.00858,68276.0,68271.0,0.73799664]
[1717338199702,0.00858,68276.0,68271.0,0.72799664]
[1717338199906,0.00858,68276.0,68271.0,0.6155823]
[1717338200262,0.00858,68276.0,68271.0,0.68490211]
[1717338200472,0.00858,68276.0,68271.0,0.39740211]
[1717338200677,0.00858,68276.0,68271.0,0.0758292]
[1717338200678,0.08608,68272.0,68271.0,0.0758292]
[1717338200900,0.1182549,68272.0,68271.0,0.0758292]
[1717338201125,0.242552,68272.0,68271.0,0.0758292]
[1717338201292,0.242552,68272.0,68271.0,0.037]
[1717338201293,0.54252991,68272.0,68271.0,0.037]
[1717338201669,0.54252991,68272.0,68249.0,0.43733372]
[1717338201670,0.01,68268.0,68249.0,0.43733372]
[1717338201876,0.07288895,68254.0,68253.0,0.146512]
[1717338202331,0.07288895,68254.0,68253.0,0.14845214]
[1717338202911,0.07288895,68254.0,68253.0,0.00194014]
[1717338203329,0.07288895,68254.0,68253.0,0.013]
[1717338203533,0.07288895,68254.0,68253.0,0.01494014]
[1717338203761,0.23918895,68254.0,68253.0,0.00194014]
[1717338203958,0.31978895,68254.0,68253.0,0.02594014]
[1717338204162,0.31978895,68254.0,68253.0,0.033]
[1717338204363,0.31978895,68254.0,68253.0,0.024]
[1717338204603,0.31978895,68254.0,68245.0,0.01468019]
[1717338204812,0.31978895,68254.0,68245.0,0.1604581]
[1717338205023,0.31978895,68254.0,68253.0,0.014]
[1717338206056,0.31978895,68254.0,68253.0,0.0138]
[1717338206261,0.31978895,68254.0,68233.0,0.04006671]
[1717338206262,0.0806,68241.0,68233.0,0.04006671]
[1717338206484,0.0806,68241.0,68231.0,0.058648]
[1717338206485,0.61984295,68234.0,68231.0,0.058648]
[1717338206689,0.47328895,68234.0,68231.0,0.058648]
[1717338207319,0.146558,68232.0,68231.0,0.058648]
[1717338208133,0.47328895,68234.0,68231.0,0.060648]
[1717338209007,0.146558,68233.0,68231.0,0.060648]
[1717338209424,0.146558,68232.0,68231.0,0.061648]
[1717338209828,0.146558,68232.0,68231.0,0.062648]
[1717338210025,0.146558,68232.0,68231.0,0.004]
[1717338210252,0.146558,68232.0,68231.0,0.001]
[1717338210457,0.146558,68232.0,68231.0,0.003]
[1717338210760,0.146558,68232.0,68231.0,0.002]
[1717338210995,0.146558,68232.0,68231.0,0.003]
[1717338211307,0.146558,68232.0,68231.0,0.005]
[1717338218143,0.07288895,68234.0,68231.0,0.005]
[1717338218413,0.43733372,68266.0,68258.0,0.2545]
[1717338218621,0.43733372,68266.0,68259.0,0.023]
[1717338218858,0.1535,68267.0,68259.0,0.023]
[1717338219280,0.1535,68267.0,68253.0,0.2545]
[1717338219483,0.1535,68267.0,68254.0,0.16877791]
[1717338219914,0.07288895,68266.0,68254.0,0.16877791]
[1717338220118,0.07288895,68266.0,68259.0,0.005]
[1717338220324,0.07288895,68266.0,68260.0,0.14577791]
[1717338222281,0.00858,68272.0,68262.0,0.02932]
[1717338222523,0.00858,68272.0,68263.0,0.15163648]
[1717338222970,0.00858,68272.0,68263.0,0.14577791]
[1717338224174,0.07288895,68271.0,68263.0,0.17977791]
[1717338224808,0.07288895,68271.0,68263.0,0.20677791]
[1717338225446,0.07288895,68271.0,68263.0,0.24377791]
[1717338226024,0.07288895,68271.0,68263.0,0.18277791]
[1717338226413,0.07288895,68271.0,68263.0,0.17277791]
[1717338226846,0.07288895,68271.0,68263.0,0.20677795]
[1717338232299,0.07288895,68271.0,68265.0,0.146487]
[1717338232524,0.07288895,68271.0,68266.0,0.14577791]
[1717338232977,0.07288895,68271.0,68265.0,0.146487]
[1717338233202,0.1653,68270.0,68263.0,0.064]
[1717338233381,0.1653,68270.0,68263.0,0.037]
[1717338233590,0.1653,68270.0,68265.0,0.02]
[1717338233971,0.00858,68272.0,68266.0,0.14577791]
[1717338235576,0.00858,68272.0,68266.0,0.29226091]
[1717338236151,0.00858,68272.0,68266.0,0.14577791]
[1717338236351,0.00858,68272.0,68269.0,0.146478]
[1717338237161,0.01158,68272.0,68269.0,0.146478]
[1717338237396,0.01158,68272.0,68266.0,0.15777791]
[1717338237613,0.07288895,68271.0,68266.0,0.012]
[1717338237785,0.07288895,68271.0,68269.0,0.001]
[1717338238023,0.23818895,68271.0,68269.0,0.001]
[1717338238580,0.23818895,68271.0,68269.0,0.003]